bitfinex-derivatives/quotes_ETHF0:USTF0_20260120
["timestamp","ask_amount","ask_price","bid_price","bid_amount"]
[1768881579272,1.66713406,3189.6,3188.8,0.00242096]
[1768881586680,0.15686,3189.6,3188.8,0.00242096]
[1768881586885,1.47032545,3190.0,3189.1,0.96238518]
[1768881588183,0.15683,3190.2,3189.1,0.96238518]
[1768881588981,0.15683,3190.2,3188.8,0.00242096]
[1768881590987,0.15683,3190.2,3188.8,1.40799891]
[1768881593198,0.15683,3190.2,3189.0,0.96199327]
[1768881593793,0.15683,3190.2,3189.1,1.39237438]
[1768881595899,0.15683,3190.2,3189.2,1.988]
[1768881597690,0.15683,3190.2,3189.0,0.96199327]
[1768881597894,0.15683,3190.2,3189.1,1.988]
[1768881601200,0.15683,3190.2,3188.8,1.39479534]
[1768881601397,0.15683,3190.2,3188.9,1.988]
[1768881601794,0.15683,3190.2,3188.8,1.39479534]
[1768881601995,0.15683,3190.2,3188.9,1.988]
[1768881602198,0.15683,3190.1,3188.9,1.988]
[1768881602899,0.15684,3190.0,3188.8,1.39479534]
[1768881603100,0.15684,3190.0,3188.9,1.988]
[1768881603303,1.61332972,3190.0,3188.9,1.988]
[1768881604387,1.61332972,3190.0,3188.8,0.00242096]
[1768881604591,1.61332972,3190.0,3188.9,1.988]
[1768881605399,1.61333972,3189.8,3188.8,0.00242096]
[1768881605600,1.45648972,3189.6,3188.8,0.00242096]
[1768881606898,0.15686,3189.5,3188.0,1.39237438]
[1768881607104,0.15686,3189.5,3188.1,5.125]
[1768881607301,1.61334972,3189.5,3188.0,1.39237438]
[1768881607502,1.61334972,3189.5,3188.2,1.988]
[1768881607991,1.61334972,3189.5,3188.2,1.99183928]
[1768881608193,1.61334972,3189.5,3188.2,0.00383928]
[1768881608397,1.61334972,3189.5,3188.3,1.987]
[1768881608894,1.61334972,3189.5,3188.2,0.00383928]
[1768881609198,1.61334972,3189.5,3188.3,1.987]
[1768881610105,1.61335972,3189.4,3188.3,1.987]
[1768881610793,1.45648972,3189.4,3188.2,0.00383928]
[1768881611000,1.45648972,3189.4,3188.2,1.99083928]
[1768881612606,0.15688,3189.2,3188.2,1.99083928]
[1768881613609,0.15688,3189.2,3188.2,0.00383928]
[1768881613803,0.15688,3189.2,3188.2,1.99083928]
[1768881617907,0.15688,3189.2,3188.2,1.98983928]
[1768881619610,0.15688,3189.2,3188.2,0.00383928]
[1768881627013,0.15688,3189.1,3188.2,0.00383928]
[1768881627214,0.15689,3189.0,3188.2,0.00383928]
[1768881633219,1.64680467,3189.0,3188.2,0.00383928]
[1768881634429,1.12405002,3189.5,3187.3,5.95975386]
[1768881634430,1.48991467,3188.8,3187.3,5.95975386]
[1768881634728,1.48991467,3188.8,3187.4,1.984]
[1768881635226,0.15689,3188.9,3187.5,1.47448729]
[1768881635430,0.82271333,3188.8,3187.5,1.47762933]
[1768881635729,0.15689,3188.9,3187.5,1.47762933]
[1768881636031,0.82271673,3188.8,3187.5,1.47762933]
[1768881636221,0.15689,3188.9,3187.5,1.47762933]
[1768881636422,0.8227167,3188.8,3187.5,1.47762933]
[1768881636623,0.15689,3188.9,3187.5,1.47762933]
[1768881640628,1.48991467,3189.2,3187.5,1.47762933]
[1768881640830,0.82286533,3189.1,3187.8,1.47448729]
[1768881641021,1.28091002,3189.5,3187.8,1.47448729]
[1768881641328,0.82288456,3189.4,3187.8,1.47448729]
[1768881641529,0.82288456,3189.3,3187.8,1.47448729]
[1768881641729,0.82288456,3189.2,3187.8,1.47448729]
[1768881641924,0.82288456,3189.1,3187.8,1.47448729]
[1768881642132,1.28091002,3189.5,3187.8,1.47448729]
[1768881642333,0.82290409,3189.4,3187.8,1.47448729]
[1768881642630,0.82290409,3189.3,3187.8,1.47448729]
[1768881642836,0.82290409,3189.2,3187.8,1.47448729]
[1768881643132,0.82290409,3189.1,3187.8,1.47448729]
[1768881643334,0.15687,3189.4,3187.8,1.47448729]
[1768881643633,0.82279878,3189.3,3187.8,1.47448729]
[1768881643824,0.15687,3189.4,3187.8,1.47448729]
[1768881643825,0.82279878,3189.2,3187.8,1.47448729]
[1768881644025,0.82279878,3189.1,3187.8,1.47448729]
[1768881644228,0.15687,3189.4,3187.8,1.47448729]
[1768881644429,0.82281287,3189.3,3187.8,1.47448729]
[1768881644634,0.82281287,3189.2,3187.8,1.47448729]
[1768881644833,0.82281287,3189.1,3187.8,1.47448729]
[1768881645035,0.15687,3189.4,3187.8,1.47448729]
[1768881645328,0.8228361,3189.3,3187.8,1.47448729]
[1768881645533,0.8228361,3189.2,3187.8,1.47448729]
[1768881645720,0.8228361,3189.1,3187.8,1.47448729]
[1768881646035,2.30303327,3189.0,3187.9,1.983]
[1768881646226,1.48020567,3189.0,3187.9,1.983]
[1768881646421,1.48020567,3189.0,3187.5,0.00314204]
[1768881646627,1.48020567,3189.0,3187.9,1.983]
[1768881646932,1.48020567,3189.0,3187.5,0.00314204]
[1768881647130,1.48020567,3188.8,3187.6,1.983]
[1768881647633,1.48020567,3188.6,3187.5,0.00314204]
[1768881647835,0.15692,3188.4,3187.5,0.00314204]
[1768881648034,0.15692,3188.4,3187.5,1.98614204]
[1768881648836,0.15692,3188.4,3187.5,0.00314204]
[1768881652642,0.15692,3188.4,3187.6,0.96310626]
[1768881652940,0.00238648,3188.6,3187.6,0.96310626]
[1768881662051,0.00238648,3188.6,3187.9,0.96310626]
[1768881665947,0.00238648,3188.6,3187.6,0.96310626]
[1768881666249,0.00238648,3188.6,3187.5,0.00314204]
[1768881666450,0.00238648,3188.6,3187.6,1.981]
[1768881667251,0.00238648,3188.6,3187.6,2.94410626]
[1768881668056,0.00238648,3188.6,3187.6,1.981]
[1768881668553,0.00238648,3188.6,3187.5,0.00314204]
[1768881668748,0.00238648,3188.6,3187.6,1.981]
[1768881671164,0.00238648,3188.6,3187.7,0.96310626]
[1768881673455,0.1569,3188.7,3188.0,0.96310626]
[1768881674157,1.12405002,3189.3,3188.3,0.96310626]
[1768881674359,1.94932576,3189.2,3188.3,0.96310626]
[1768881674560,0.82527574,3189.1,3188.3,0.96310626]
[1768881674759,0.82527574,3189.0,3188.3,0.96310626]
[1768881675061,0.82527574,3188.9,3188.3,0.96310626]
[1768881675259,0.15951538,3189.3,3188.0,0.96310626]
[1768881675451,0.82564731,3189.2,3188.0,0.96310626]
[1768881675657,0.15951538,3189.3,3188.0,0.96310626]
[1768881675658,0.82564731,3189.1,3188.0,0.96310626]
[1768881675858,0.82564731,3189.0,3188.0,0.96310626]
[1768881676059,0.82564731,3188.9,3188.0,0.96310626]
[1768881676263,0.15951538,3189.3,3188.0,0.96310626]
[1768881676560,0.8255961,3189.2,3188.0,0.96310626]
[1768881676857,0.8255961,3189.1,3188.0,0.96310626]
[1768881677057,0.8255961,3189.0,3188.0,0.96310626]
[1768881677256,1.50001141,3189.3,3187.7,1.41579408]
[1768881677446,1.49736603,3189.1,3187.8,1.98]
[1768881677652,0.82551716,3189.0,3187.7,2.37890034]
[1768881678157,0.82551716,3189.0,3187.8,1.98]
[1768881678551,0.98240716,3189.0,3187.8,1.98]
[1768881678755,0.15689,3189.0,3187.8,1.98]
[1768881681362,0.15689,3189.0,3187.7,2.37890034]
[1768881681563,0.15689,3189.0,3187.8,1.979]
[1768881686965,0.15689,3189.0,3187.6,0.96310626]
[1768881686966,0.15691,3188.6,3187.6,1.978]
[1768881687764,0.15691,3188.6,3187.9,0.96310626]
[1768881692371,0.15691,3188.6,3187.6,4.40594636]
[1768881693079,0.15691,3188.6,3187.6,2.42794636]
[1768881693376,0.15691,3188.6,3187.7,1.978]
[1768881693782,0.15691,3188.6,3187.6,2.42794636]
[1768881693989,0.15691,3188.6,3187.7,1.978]
[1768881694286,0.15691,3188.6,3187.5,0.00314204]
[1768881694488,0.15691,3188.6,3187.6,1.978]
[1768881694886,0.15691,3188.6,3187.5,0.00314204]
[1768881696486,0.15691,3188.6,3187.5,1.98114204]
[1768881700491,0.15691,3188.5,3187.5,1.98114204]
[1768881700693,0.15692,3188.3,3187.5,0.00314204]
[1768881703189,1.12405002,3188.8,3188.1,0.96310626]
[1768881703496,0.15689,3189.0,3188.1,0.96310626]
[1768881703993,0.15689,3189.0,3187.8,2.43351271]
[1768881705488,0.15689,3189.0,3187.8,4.41051271]
[1768881706491,0.82634475,3188.9,3187.5,0.9662483]
[1768881706697,0.82634475,3188.8,3187.5,0.9662483]
[1768881706898,0.1569,3188.7,3187.5,0.9662483]
[1768881709401,0.98349956,3188.6,3187.5,0.9662483]
[1768881709600,0.15691,3188.6,3187.5,0.9662483]
[1768881712105,0.15688,3189.2,3188.1,0.96310626]
[1768881712403,0.82705722,3189.1,3188.1,0.96310626]
[1768881712605,0.82705722,3189.0,3188.1,0.96310626]
[1768881712901,0.82705722,3188.9,3187.7,1.47040645]
[1768881713092,0.15688,3189.2,3187.7,1.47040645]
[1768881713294,0.82710188,3189.1,3187.7,1.47040645]
[1768881713499,0.15688,3189.2,3187.7,1.47040645]
[1768881713500,0.82710188,3189.0,3187.7,1.47040645]
[1768881713698,1.28093002,3189.2,3187.7,1.47040645]
[1768881713699,0.82710188,3188.9,3187.7,1.47040645]
[1768881713900,1.28093002,3189.2,3187.7,1.47040645]
[1768881714203,0.82814091,3189.1,3187.7,1.47040645]
[1768881714399,0.82814091,3189.0,3187.7,1.47040645]
[1768881714603,0.82814091,3188.9,3187.7,1.47040645]
[1768881714795,0.15688,3189.2,3187.7,1.47040645]
[1768881714995,0.82813628,3189.1,3187.7,1.47040645]
[1768881715200,0.82813628,3189.0,3187.7,1.47040645]
[1768881715399,0.82813628,3188.9,3187.7,1.47040645]
[1768881715696,0.15688,3189.2,3188.1,1.41691233]
[1768881716004,0.82819257,3189.1,3188.1,1.41691233]
[1768881716202,0.15688,3189.2,3188.1,1.41691233]
[1768881716404,0.82814137,3189.1,3188.1,1.41691233]
[1768881716601,0.15688,3189.2,3188.1,1.41691233]
[1768881721107,0.15684,3189.9,3188.5,1.41691233]
[1768881721296,0.82776794,3189.8,3188.5,1.41691233]
[1768881721601,0.15684,3189.9,3188.5,1.41691233]
[1768881722307,0.16067526,3189.9,3188.5,1.41691233]
[1768881725909,1.53668001,3189.7,3188.3,1.974]
[1768881726500,1.53668001,3189.7,3188.1,1.41691233]
[1768881726709,1.53668001,3189.7,3188.3,1.974]
[1768881727403,1.53668001,3189.7,3188.1,1.41691233]
[1768881727605,0.15686,3189.5,3188.1,1.41691233]
[1768881727803,1.53670001,3189.4,3187.7,1.41691233]
[1768881728109,1.53670001,3189.4,3187.8,1.974]
[1768881729512,1.53670001,3189.4,3187.9,1.973]
[1768881729804,1.37983001,3189.3,3187.7,1.41691233]
[1768881730010,1.37983001,3189.3,3187.8,1.973]
[1768881731612,0.15688,3189.1,3187.8,1.973]
[1768881734214,0.15688,3189.1,3187.9,1.41691233]
[1768881735315,0.15689,3189.0,3187.5,1.42005437]
[1768881735513,1.53672001,3189.0,3187.9,1.973]
[1768881737217,0.15689,3189.0,3187.9,1.973]
[1768881742525,0.15689,3189.0,3187.5,1.42005437]
[1768881742719,0.15689,3189.0,3187.8,3.38891233]
[1768881753937,1.37983001,3189.4,3187.5,0.00314204]
[1768881754132,1.37428294,3189.1,3187.6,1.971]
[1768881754427,0.1569,3188.7,3187.6,1.971]
[1768881755024,0.1569,3188.7,3187.6,1.97]
[1768881756036,1.37428294,3189.1,3187.5,0.00314204]
[1768881756037,0.15691,3188.6,3187.5,0.00314204]
[1768881756242,0.15691,3188.6,3187.6,1.97]
[1768881767655,0.15691,3188.6,3187.5,0.00314204]
[1768881767961,0.15691,3188.5,3187.5,0.00314204]
[1768881770959,0.15692,3188.3,3187.5,0.00314204]
[1768881772962,0.15693,3188.1,3187.1,1.969]
[1768881773158,0.15693,3188.1,3186.7,1.44410636]
[1768881773356,0.15693,3188.1,3186.8,1.968]
[1768881773757,0.15693,3188.1,3186.9,1.968]
[1768881774057,0.15693,3188.1,3186.9,1.969]
[1768881778663,2.3392167,3188.0,3186.8,0.00278279]
[1768881778863,1.37582461,3187.9,3186.8,0.00278279]
[1768881779662,0.15695,3187.8,3186.8,0.00278279]
[1768881781859,0.15692,3188.4,3187.4,0.96339209]
[1768881782074,0.82475414,3188.3,3187.1,1.44410636]
[1768881782275,0.15692,3188.4,3187.2,0.96339209]
[1768881782570,0.15692,3188.3,3187.1,1.44410636]
[1768881783072,1.53274461,3188.3,3187.0,1.968]
[1768881783966,1.53274461,3188.3,3186.8,0.96617488]
[1768881784166,1.53274461,3188.3,3186.9,1.968]
[1768881784870,1.37582461,3188.2,3186.8,0.00278279]
[1768881785066,2.4961567,3187.9,3186.8,0.00278279]
[1768881785670,1.37582461,3187.8,3186.8,0.00278279]
[1768881791973,0.15694,3187.9,3186.8,0.00278279]
[1768881795576,1.53276461,3187.9,3186.8,0.00278279]
[1768881795783,1.37582461,3187.7,3186.8,0.00278279]
[1768881806296,0.15695,3187.8,3186.8,0.00278279]
[1768881810992,0.15695,3187.8,3186.9,0.96339209]
[1768881815785,2.5770836,3188.3,3187.2,0.96339209]
[1768881815984,0.82644897,3188.2,3187.2,0.96339209]
[1768881816192,0.82644897,3188.1,3187.2,0.96339209]
[1768881816390,0.82644897,3188.0,3187.2,0.96339209]
[1768881816590,1.45303358,3188.3,3187.2,0.96339209]
[1768881816786,0.82659391,3188.2,3187.2,0.96339209]
[1768881816992,0.15692,3188.4,3187.5,0.96339209]
[1768881817188,0.82666071,3188.3,3187.5,0.96339209]
[1768881817498,0.82666071,3188.2,3187.5,0.96339209]
[1768881817685,0.15692,3188.4,3187.5,0.96339209]
[1768881817889,0.82635244,3188.3,3187.5,0.96339209]
[1768881818194,0.82635244,3188.2,3187.5,0.96339209]
[1768881818390,0.15692,3188.4,3187.5,0.96339209]
[1768881818590,0.82616672,3188.3,3187.5,0.96339209]
[1768881818791,0.82616672,3188.2,3187.5,0.96339209]
[1768881819092,0.15692,3188.4,3187.5,0.96339209]
[1768881821492,1.12405002,3189.0,3187.8,0.96339209]
[1768881821701,2.5770836,3189.0,3187.8,0.96339209]
[1768881821891,0.82552885,3188.9,3187.8,0.96339209]
[1768881823399,2.34704657,3188.9,3187.8,0.96339209]
[1768881823600,2.34704657,3188.8,3187.8,0.96339209]
[1768881823894,0.82552885,3188.7,3187.8,0.96339209]
[1768881824096,1.52151772,3188.8,3187.8,0.96339209]
[1768881824396,0.82393232,3188.7,3187.8,0.96339209]
[1768881824697,1.52151772,3188.8,3187.8,0.96339209]
[1768881824897,0.82377474,3188.7,3187.8,0.96339209]
[1768881825091,1.52151772,3188.8,3187.8,0.96339209]
[1768881825292,0.82377474,3188.7,3187.8,0.96339209]
[1768881825495,1.52151772,3188.8,3187.8,0.96339209]
[1768881834392,0.15689,3188.9,3187.8,2.34419445]
[1768881834594,0.15689,3188.9,3188.3,0.96339209]
[1768881834896,0.15689,3188.9,3187.8,1.38080236]
[1768881835297,1.38736034,3189.3,3187.8,1.38080236]
[1768881835800,1.54423034,3189.3,3187.8,1.38080236]
[1768881839603,0.15688,3189.2,3187.8,1.38080236]
[1768881839802,1.54425034,3189.0,3187.7,1.969]
[1768881840502,1.54425034,3189.0,3187.6,1.969]
[1768881841214,1.54426034,3188.8,3187.2,2.82175386]
[1768881841502,1.54427034,3188.5,3187.3,1.969]
[1768881841705,0.96248924,3189.2,3186.8,2.82453665]
[1768881841706,1.38736034,3188.4,3186.8,2.82453665]
[1768881841909,1.54429034,3188.2,3186.8,0.00278279]
[1768881842108,0.15693,3188.2,3186.9,4.3122916]
[1768881842410,0.15693,3188.2,3187.0,1.38080236]
[1768881844714,1.38736034,3188.6,3187.0,1.38080236]
[1768881844911,1.54425034,3188.9,3187.0,1.38080236]
[1768881845205,2.2110466,3188.8,3187.0,1.38080236]
[1768881845408,2.2110466,3188.7,3187.0,1.38080236]
[1768881845598,1.38736034,3188.7,3187.0,1.38080236]
[1768881847509,1.38736034,3188.7,3187.1,1.969]
[1768881847708,1.54427034,3188.6,3187.2,1.969]
[1768881854419,1.54427034,3188.6,3186.9,5.16504546]
[1768881854612,1.54427034,3188.6,3187.0,3.34980236]
[1768881856317,1.54427034,3188.6,3187.1,1.38080236]
[1768881857525,1.54427034,3188.6,3187.0,1.969]
[1768881860421,1.54427034,3188.6,3187.0,3.34980236]
[1768881862721,1.54427034,3188.6,3187.1,1.97]
[1768881869023,1.3867345,3188.4,3187.0,2.82110282]
[1768881869328,1.3867345,3188.4,3187.1,1.971]
[1768881882530,2.26446752,3188.3,3187.1,1.971]
[1768881882724,1.43786354,3188.3,3187.1,1.971]
[1768881882924,1.43786354,3188.0,3186.8,2.82388561]
[1768881883129,1.43786354,3188.0,3186.9,1.971]
[1768881885536,1.43786354,3188.0,3186.8,0.00278279]
[1768881885926,1.43786354,3188.0,3186.8,1.97378279]
[1768881890335,1.43786354,3188.0,3186.8,1.97278279]
[1768881894943,1.43786354,3188.0,3186.9,0.96333811]
[1768881895139,1.43786354,3188.0,3186.8,1.97278279]
[1768881895437,1.43786354,3188.0,3186.9,0.96333811]
[1768881895644,1.59480354,3188.0,3186.8,1.97278279]
[1768881900148,1.59480354,3188.0,3186.9,0.96333811]
[1768881900342,0.15694,3188.0,3186.9,0.96333811]
[1768881901950,0.15694,3188.0,3187.2,0.96333811]
[1768881902749,1.39973889,3188.4,3186.9,0.96333811]
[1768881902750,1.39973889,3188.4,3187.5,0.96333811]
[1768881902945,0.82468868,3188.3,3187.5,0.96333811]
[1768881903247,1.39973889,3188.4,3187.5,0.96333811]
[1768881903450,0.82474735,3188.3,3187.5,0.96333811]
[1768881903761,1.39973889,3188.4,3187.5,0.96333811]
[1768881903947,0.82474741,3188.3,3187.5,0.96333811]
[1768881904248,1.39973889,3188.4,3187.5,0.96333811]
[1768881904451,0.15691,3188.6,3187.5,0.96333811]
[1768881904649,0.98176017,3188.5,3187.5,0.96333811]
[1768881904845,0.82485017,3188.4,3187.5,0.96333811]
[1768881908153,0.15691,3188.5,3187.5,0.96333811]
[1768881908649,1.69034388,3189.1,3187.5,0.96333811]
[1768881908650,1.12689592,3189.1,3188.1,0.96333811]
[1768881908849,0.82483943,3189.0,3188.1,0.96333811]
[1768881909159,1.55661889,3189.2,3188.1,0.96333811]
[1768881909344,0.82457628,3189.1,3188.1,0.96333811]
[1768881909544,1.55661889,3189.2,3188.1,0.96333811]
[1768881909545,0.82457628,3189.0,3188.1,0.96333811]
[1768881909743,1.55661889,3189.2,3188.1,0.96333811]
[1768881909943,0.82457414,3189.1,3188.1,0.96333811]
[1768881910242,0.82457414,3189.0,3188.1,0.96333811]
[1768881910450,1.55661889,3189.2,3188.1,0.96333811]
[1768881910758,0.82432472,3189.1,3187.8,0.96333811]
[1768881911047,0.82432472,3189.0,3187.8,0.96333811]
[1768881911242,0.15688,3189.2,3188.1,0.96333811]
[1768881911854,0.15688,3189.2,3188.4,0.96333811]
[1768881912243,1.28757118,3189.9,3188.7,0.96333811]
[1768881912557,0.82384622,3189.8,3188.7,0.96333811]
[1768881912855,0.82384622,3189.7,3188.7,0.96333811]
[1768881913052,1.56041415,3189.9,3188.7,0.96333811]
[1768881913253,0.82332789,3189.8,3188.7,0.96333811]
[1768881913453,0.82332789,3189.7,3188.7,0.96333811]
[1768881913754,1.56041415,3189.9,3188.7,0.96333811]
[1768881913951,0.82335062,3189.8,3188.7,0.96333811]
[1768881914150,1.56041415,3189.9,3188.7,0.96333811]
[1768881914348,0.97912529,3189.8,3188.4,2.4693641]
[1768881914553,0.15685,3189.8,3188.4,2.4693641]
[1768881917748,0.15686,3189.6,3188.3,0.96333811]
[1768881917950,1.39973889,3189.3,3187.9,0.96333811]
[1768881919558,0.15688,3189.2,3187.9,0.96333811]
[1768881921049,0.15688,3189.2,3188.2,0.96333811]
[1768881928161,0.15688,3189.1,3187.9,0.96333811]
[1768881929061,0.15688,3189.1,3188.3,0.96333811]
[1768881933361,1.53970297,3189.8,3188.6,0.96333811]
[1768881933567,0.82305525,3189.7,3188.6,0.96333811]
[1768881933864,1.53970297,3189.8,3188.6,0.96333811]
[1768881934055,0.82306401,3189.7,3188.6,0.96333811]
[1768881934256,1.53970297,3189.8,3188.6,0.96333811]
[1768881934468,0.82325094,3189.7,3188.6,0.96333811]
[1768881934760,0.15685,3189.8,3188.6,0.96333811]
[1768881934964,0.82325367,3189.7,3188.6,0.96333811]
[1768881935166,0.15685,3189.8,3188.9,0.96333811]
[1768881935467,0.15685,3189.8,3189.2,0.96333811]
[1768881935667,0.15685,3189.8,3189.2,0.96733947]
[1768881936167,0.1568,3190.9,3189.8,0.96333811]
[1768881936467,0.82375986,3190.8,3189.8,0.96333811]
[1768881936667,0.1568,3190.9,3189.8,0.96333811]
[1768881936858,0.82374924,3190.8,3189.8,0.96333811]
[1768881937059,0.00402781,3190.8,3189.8,0.96333811]
[1768881940267,0.15681,3190.7,3189.3,1.39214261]
[1768881940462,0.15681,3190.6,3189.3,0.96333811]
[1768881940667,1.53966297,3190.6,3189.2,0.96733947]
[1768881943069,0.15682,3190.4,3189.2,0.96733947]
[1768881943470,1.58196295,3190.4,3189.2,0.96733947]
[1768881947770,0.15682,3190.3,3189.2,0.96733947]
[1768881949368,1.42514295,3190.2,3189.2,0.00400136]
[1768881949572,0.15684,3190.0,3189.2,0.00400136]
[1768881962384,1.48340725,3190.6,3189.2,0.00400136]
[1768881962590,0.82455046,3190.5,3189.2,0.00400136]
[1768881962889,0.82455046,3190.4,3189.2,0.00400136]
[1768881963086,0.15681,3190.5,3189.2,0.00400136]
[1768881963276,1.48340725,3190.6,3189.2,0.00400136]
[1768881963277,0.98178297,3190.4,3189.2,0.00400136]
[1768881963479,0.82496297,3190.3,3189.2,0.00400136]
[1768881966193,0.82496297,3190.3,3189.2,1.41450024]
[1768881966784,0.15682,3190.4,3189.2,1.41450024]
[1768881967190,0.82571041,3190.3,3189.2,1.41450024]
[1768881967389,0.15682,3190.4,3189.2,1.41450024]
[1768881967599,0.82572184,3190.3,3189.2,1.41450024]
[1768881967797,0.15682,3190.4,3189.2,1.41450024]
[1768881967985,0.82572184,3190.3,3189.2,1.41450024]
[1768881968188,0.15682,3190.4,3189.2,1.41450024]
[1768881968396,0.82580752,3190.3,3189.2,1.41450024]
[1768881968699,0.15682,3190.4,3189.2,1.41450024]
[1768881968992,0.82581445,3190.3,3189.2,1.41450024]
[1768881969196,0.15682,3190.4,3189.2,1.41450024]
[1768881969391,0.82592509,3190.3,3189.2,1.41450024]
[1768881969591,0.15682,3190.4,3189.2,1.41450024]
[1768881969785,0.82591826,3190.3,3189.2,1.41450024]
[1768881969990,0.15682,3190.4,3189.2,1.41450024]
[1768881970189,0.82591826,3190.3,3189.2,1.41450024]
[1768881970389,0.15682,3190.4,3189.2,1.41450024]
[1768881970591,0.82604116,3190.3,3189.2,1.41450024]
[1768881970890,0.15682,3190.4,3189.2,1.41450024]
[1768881971090,0.82604116,3190.3,3189.2,1.41450024]
[1768881971298,0.15682,3190.4,3189.2,1.41450024]
[1768881971500,0.82609101,3190.3,3189.2,1.41450024]
[1768881971695,0.15682,3190.4,3189.2,1.41450024]
[1768881971998,0.82609065,3190.3,3189.2,1.41450024]
[1768881972194,0.15682,3190.4,3189.2,1.41450024]
[1768881972397,0.82608669,3190.3,3189.2,1.41450024]
[1768881972594,0.15682,3190.4,3189.2,1.41450024]
[1768881972796,1.64023725,3190.1,3189.2,0.00400136]
[1768881976603,2.30891956,3190.0,3189.2,0.00400136]
[1768881976799,1.48340725,3190.0,3189.2,0.00400136]
[1768881978003,1.64024725,3190.0,3189.2,0.00400136]
[1768881983304,1.58651653,3189.7,3189.2,1.36e-06]
[1768881983502,1.58651653,3189.7,3188.6,1.958]
[1768881984513,1.58651653,3189.7,3188.6,1.96105219]
[1768881985311,1.58651653,3189.7,3188.6,0.00305219]
[1768881985495,0.15686,3189.5,3188.6,0.00305219]
[1768881986111,1.58652653,3189.5,3188.6,0.00305219]
[1768881988912,0.15687,3189.4,3188.6,0.00305219]
[1768881991209,1.58653653,3189.3,3188.6,0.00305219]
[1768881996313,0.15688,3189.2,3188.0,1.956]
[1768881997110,1.58654653,3189.2,3188.0,0.00237449]
[1768881998717,1.42966653,3189.0,3188.0,0.00237449]
[1768881999221,0.15689,3188.9,3188.0,0.00237449]
[1768882001029,1.58655653,3188.9,3188.0,0.00237449]
[1768882002524,0.15689,3188.9,3188.0,0.00237449]
[1768882005425,1.46283217,3189.3,3188.0,0.00237449]
[1768882005729,0.15687,3189.4,3188.0,1.42781215]
[1768882006131,0.15687,3189.4,3188.3,1.42543766]
[1768882016052,1.60596529,3189.4,3188.0,0.00237449]
[1768882016248,1.60596529,3189.4,3188.1,1.955]
[1768882016549,1.60596529,3189.4,3188.1,1.954]
[1768882016956,1.60596529,3189.4,3188.2,0.96255725]
[1768882017746,0.15687,3189.3,3188.2,0.96255725]
[1768882017946,1.60596529,3189.3,3188.2,0.96255725]
[1768882023741,0.96255725,3189.9,3188.8,0.96255725]
[1768882023742,1.44909529,3189.7,3188.8,0.96255725]
[1768882023943,0.15687,3189.3,3188.8,0.96255725]
[1768882024144,1.44909529,3189.7,3188.8,0.96255725]
[1768882024444,0.82379506,3189.6,3188.8,0.96255725]
[1768882024648,0.82379506,3189.5,3188.8,0.96255725]
[1768882024851,1.44909529,3189.7,3188.8,0.96255725]
[1768882025049,0.82377849,3189.6,3188.8,0.96255725]
[1768882025353,0.82377849,3189.5,3188.8,0.96255725]
[1768882025552,0.15687,3189.3,3188.8,0.96255725]
[1768882027355,0.15687,3189.3,3188.5,0.96255725]
[1768882027565,1.60597529,3189.2,3188.4,1.953]
[1768882030056,1.60597529,3189.2,3188.0,0.96493174]
[1768882030258,1.60597529,3189.2,3188.0,2.91793174]
[1768882031652,1.60597529,3189.2,3188.1,0.96255725]
[1768882032561,1.60598529,3189.0,3188.0,0.00237449]
[1768882032862,1.44909529,3188.9,3188.0,0.00237449]
[1768882033665,0.1569,3188.8,3188.0,0.00237449]
[1768882033962,1.44909529,3188.6,3187.5,1.953]
[1768882034854,1.44909529,3188.6,3187.5,1.95614873]
[1768882035765,1.60600529,3188.6,3187.5,1.95614873]
[1768882035964,1.60600529,3188.6,3187.5,0.00314873]
[1768882037870,1.60601529,3188.4,3187.5,0.00314873]
[1768882038059,1.60927053,3188.4,3187.5,0.00314873]
[1768882041363,1.60927053,3188.4,3187.5,0.96570598]
[1768882042462,0.16017524,3188.4,3187.5,0.96570598]
[1768882043663,0.16017524,3188.4,3187.9,0.96255725]
[1768882048276,0.16017524,3188.4,3187.6,0.96255725]
[1768882049660,0.16017524,3188.4,3187.5,2.91770598]
[1768882049865,0.16017524,3188.4,3187.5,2.91670598]
[1768882050067,0.15692,3188.3,3187.5,0.00314873]
[1768882050267,0.15693,3188.2,3187.5,0.00314873]
[1768882056369,0.15693,3188.2,3187.5,0.96570598]
[1768882068194,0.15693,3188.2,3187.5,0.00314873]
[1768882079511,0.15693,3188.2,3187.2,1.949]
[1768882080706,0.15693,3188.2,3187.2,1.95243015]
[1768882084518,0.15693,3188.2,3187.2,0.00343015]
[1768882084816,0.15693,3188.2,3187.2,1.95143015]
[1768882088306,1.5404714,3188.2,3187.2,0.00343015]
[1768882096325,0.82544537,3188.1,3187.2,0.00343015]
[1768882096511,1.5404714,3188.2,3187.2,0.00343015]
[1768882099720,1.3835414,3188.2,3187.2,0.00343015]
[1768882099924,1.3835414,3187.6,3186.5,2.82110282]
[1768882100120,1.5405014,3187.5,3186.2,2.82110282]
[1768882100422,1.5405014,3187.5,3186.3,1.946]
[1768882101020,1.5405014,3187.5,3186.3,1.94844019]
[1768882105132,0.15696,3187.5,3186.4,1.49395964]
[1768882107028,0.15693,3188.1,3186.4,1.49395964]
[1768882107228,0.97989919,3188.0,3186.4,1.49395964]
[1768882107432,0.82294213,3187.9,3186.4,1.49395964]
[1768882107730,0.15694,3188.0,3186.4,1.49395964]
[1768882108326,0.15694,3188.0,3186.8,1.49395964]
[1768882108826,0.00325524,3188.4,3187.1,2.45707055]
[1768882109030,0.00325524,3188.4,3187.3,1.49395964]
[1768882110034,1.45718906,3188.6,3186.9,1.49395964]
[1768882110225,1.45718906,3188.6,3187.0,6.57995964]
[1768882110531,1.45718906,3188.6,3187.0,1.49395964]
[1768882110721,1.45718906,3188.6,3187.1,1.946]
[1768882110918,1.45718906,3188.4,3187.0,1.49395964]
[1768882111124,1.61671632,3188.4,3187.1,1.946]
[1768882113037,0.15693,3188.2,3187.1,1.945]
[1768882113223,1.61411906,3188.2,3186.7,3.14]
[1768882113522,1.61411906,3188.2,3187.1,1.945]
[1768882124039,0.15693,3188.2,3187.1,1.945]
[1768882133030,0.15693,3188.2,3187.1,3.42421306]
[1768882133944,0.15693,3188.2,3187.1,1.47921306]
[1768882134943,0.15693,3188.2,3187.0,1.943]
[1768882136243,0.8276971,3188.1,3187.0,1.943]
[1768882136448,0.15693,3188.2,3187.0,1.943]
[1768882136640,0.8276982,3188.1,3187.0,1.943]
[1768882136941,0.15693,3188.2,3187.0,1.943]
[1768882137141,0.82769452,3188.1,3187.0,1.943]
[1768882137342,0.15693,3188.2,3187.0,1.943]
[1768882137542,0.82798368,3188.1,3187.0,1.943]